[Event "KAZ Cup Women 2019"]
[Site "Almaty"]
[Date "2019.12.16"]
[Round "6.1"]
[White "Dauletova, Gulmira"]
[Black "Nakhbayeva, Guliskhan"]
[Result "0-1"]
[ECO "C18"]
[WhiteElo "2250"]
[BlackElo "2296"]
[Annotator "NA"]
[PlyCount "202"]
[EventDate "2019.12.12"]
[EventType "tourn"]
[EventCountry "KAZ"]
[SourceTitle "playchess.com"]
[Source "ChessBase"]
[SourceQuality "1"]
[TimeControl "40/5400+30:1800+30"]

1. e4 {[%emt 0:00:00]} e6 {[%emt 0:00:00]} 2. d4 {[%emt 0:00:00]} d5 {[%emt 0:00:00]} 3. Nc3 {[%emt 0:00:07]} Bb4 {[%emt 0:00:08]} 4. e5 {[%emt 0:00:07]} c5 {[%emt 0:00:04]} 5. a3 {[%emt 0:00:11]} Bxc3+ {[%emt 0:00:22]} 6. bxc3 {[%emt 0:00:07]} Ne7 {[%emt 0:00:11]} 7. Qg4 {[%emt 0:00:51]} O-O {[%emt 0:00:35]} 8. Bd3 {[%emt 0:00:37]} f5 {[%emt 0:01:21]} 9. exf6 {[%emt 0:01:19]} Rxf6 {[%emt 0:00:04]} 10. Bg5 {[%emt 0:09:08]} Rf7 {[%emt 0:00:14]} 11. Qh4 {[%emt 0:01:29] C18: French: 3 Nc3 Bb4: Main line: 7 h4 and 7 Qg4} ({But not} 11. dxc5 e5 $15) (11. Qh5 $5 {[%cal Rh5h7]} g6 12. Qd1 $11 Qa5 13. Bd2 e5 14. h4 e4 15. Be2 e3 16. Bxe3 Qxc3+ 17. Bd2 Qxd4 18. Nf3 Qf6 19. Bg5 Qc3+ 20. Bd2 Qf6 21. Bg5 Qc3+ 22. Bd2 Qf6 {½-½ (22) Aronian,L (2765)-Riazantsev,A (2649) St Petersburg 2018}) 11... g6 {[%emt 0:01:59]} 12. Nf3 {[%emt 0:01:38]} Nbc6 {[%emt 0:01:08]} 13. Bf6 {[%emt 0:09:47]} Qa5 $1 {[%emt 0:09:55]} 14. O-O {[%emt 0:21:58]} c4 {[%emt 0:08:50]} 15. Ne5 {[%emt 0:08:26]} Nxe5 {[%emt 0:03:31]} 16. dxe5 {[%emt 0:01:35]} Kf8 {[%emt 0:08:48]} 17. Bxe7+ $1 $146 {[%emt 0:17:02]} ({Predecessor:} 17. Be2 Qxc3 18. Rab1 b6 19. Rb3 cxb3 20. Bxe7+ Rxe7 {0-1 (20) Zaczek,J (2012)-Thavandiran,S (2257) Brantford 2005}) 17... Rxe7 {[%emt 0:00:38]} 18. Bxg6 {[%emt 0:00:12]} hxg6 {[%emt 0:01:10]} 19. Qh8+ {[%emt 0:00:01]} Kf7 {[%emt 0:00:05]} 20. Qh7+ {[%emt 0:00:04]} Ke8 {[%emt 0:00:26]} 21. Qxg6+ {[%emt 0:00:02]} Kd8 {[%emt 0:05:13]} 22. Rae1 {[%emt 0:06:42]} Bd7 {[%emt 0:03:09]} 23. Qf6 {[%emt 0:00:20]} Bc6 {[%emt 0:05:08]} 24. Re3 {[%emt 0:01:23]} Kd7 {[%emt 0:00:34]} 25. Rg3 {[%emt 0:01:02]} Qxa3 {[%emt 0:04:30]} 26. f4 {[%emt 0:01:35]} Rae8 {[%emt 0:01:58]} 27. h4 {[%emt 0:04:44]} Ba4 {[%emt 0:08:23]} 28. Qg6 {[%emt 0:04:48]} Rf8 {[%emt 0:05:26]} 29. h5 {[%emt 0:09:09]} Qb2 {[%emt 0:01:34]} 30. Qh6 {[%emt 0:01:05]} Rff7 {[%emt 0:04:15]} 31. f5 {[%emt 0:04:24]} Qb6+ {[%emt 0:00:22]} 32. Kh2 {[%emt 0:01:44]} Rh7 {[%emt 0:05:44]} 33. Qg5 {[%emt 0:00:33]} exf5 {[%emt 0:03:15]} 34. Rxf5 {[%emt 0:00:02]} Bxc2 {[%emt 0:05:19]} 35. Rf6 {[%emt 0:01:09]} Re6 {[%emt 0:02:06]} 36. h6 Rxf6 {[%emt 0:06:15]} 37. exf6 {[%emt 0:00:22]} Qe6 {[%emt 0:00:04]} 38. Qf4 {[%emt 0:00:46]} Qf5 {[%emt 0:02:37]} 39. Qh4 {[%emt 0:00:42]} Ke6 {[%emt 0:03:07]} 40. Rf3 {[%emt 0:00:34]} Qg6 {[%emt 0:01:08]} 41. Kg1 {[%emt 0:18:10]} Be4 {[%emt 0:02:46]} 42. Qh3+ {[%emt 0:01:36]} Kd6 {[%emt 0:04:29]} 43. Rf2 {[%emt 0:01:44]} a5 {[%emt 0:08:15]} 44. Qc8 {[%emt 0:00:41]} Qxh6 {[%emt 0:03:51]} 45. Qd8+ {[%emt 0:01:01]} Kc6 {[%emt 0:02:12]} 46. Qc8+ {[%emt 0:00:36]} Kb5 {[%emt 0:01:25]} 47. Qe8+ $1 {[%emt 0:00:26]} Kb6 {[%emt 0:06:00]} 48. Qd8+ {[%emt 0:00:04]} Kc6 {[%emt 0:00:36]} 49. Qc8+ {[%emt 0:00:06]} Kd6 {[%emt 0:01:36]} 50. Qd8+ {[%emt 0:00:11]} Rd7 {[%emt 0:02:36]} 51. Qb8+ {[%emt 0:00:17]} Kc6 {[%emt 0:01:22]} 52. Qc8+ {[%emt 0:01:02]} Rc7 {[%emt 0:00:39]} 53. Qe8+ {[%emt 0:00:54]} Kb6 {[%emt 0:00:32]} 54. f7 {[%emt 0:02:16]} Qc1+ {[%emt 0:00:04]} 55. Rf1 {[%emt 0:01:52]} Qe3+ {[%emt 0:00:18]} 56. Rf2 {[%emt 0:00:30]} Rxf7 {[%emt 0:00:33]} 57. Qxf7 {[%emt 0:00:04]} Qxc3 {[%emt 0:00:11]} 58. Qe7 {[%emt 0:02:24]} Qe1+ {[%emt 0:00:32]} 59. Rf1 {[%emt 0:00:02]} Qe3+ {[%emt 0:00:04]} 60. Kh2 {[%emt 0:01:38]} Ka7 {[%emt 0:00:32]} 61. Rf7 {[%emt 0:04:40]} Qh6+ {[%emt 0:00:21]} 62. Kg1 {[%emt 0:00:03]} Qb6+ {[%emt 0:00:04]} 63. Kh2 {[%emt 0:00:23]} c3 {[%emt 0:00:54]} 64. Rf6 {[%emt 0:00:38]} Qb4 {[%emt 0:00:59]} 65. Qc7 {[%emt 0:00:59]} c2 {[%emt 0:00:35]} 66. Rc6 {[%emt 0:00:38]} d4 {[%emt 0:01:45]} 67. Rc5 {[%emt 0:00:27]} Ka6 {[%emt 0:00:25]} 68. Qc8 {[%emt 0:00:37]} Ka7 {[%emt 0:00:45]} 69. Qc7 {[%emt 0:00:02]} Ka6 {[%emt 0:00:20]} 70. Qc8 {[%emt 0:00:01]} Ka7 {[%emt 0:00:40]} 71. Qc7 {[%emt 0:00:02]} c1=Q {[%emt 0:00:32]} 72. Rxc1 {[%emt 0:00:37]} Qb6 73. Qc8 (73. Qf4 $1 $15) 73... Qh6+ {[%emt 0:00:48]} 74. Kg1 {[%emt 0:00:43]} Bc6 {[%emt 0:00:39]} (74... Qe3+ 75. Kh2) 75. Rc5 {[%emt 0:01:03] [#]} Qe3+ $15 {[%emt 0:00:33]} ({Black should try} 75... Kb6 $1 $19 76. Rc2 Qe3+ 77. Kh1 Qh6+ 78. Kg1 Qe3+ 79. Kh1 Qe1+ 80. Kh2 Qe5+ 81. Kg1 Qe3+) 76. Kh2 {[%emt 0:00:02]} Qf4+ {[%emt 0:00:29]} 77. Kg1 {[%emt 0:00:05]} Kb6 {[%emt 0:00:20]} 78. Rf5 {[%emt 0:00:56]} Qe3+ {[%emt 0:00:30]} 79. Kh2 Qh6+ {[%emt 0:00:36]} 80. Kg1 {[%emt 0:00:21]} Qe3+ {[%emt 0:00:35]} 81. Kh2 {[%emt 0:00:05]} Qe8 {[%emt 0:00:31]} 82. Qxe8 {[%emt 0:00:26]} Bxe8 {[%emt 0:00:00]} 83. Rd5 {[%emt 0:00:07]} a4 84. Rxd4 {[%emt 0:01:33]} a3 {[%emt 0:00:56]} 85. Rb4+ Bb5 {[%emt 0:00:51]} 86. Rb1 {[%emt 0:01:14]} a2 {[%emt 0:00:10]} 87. Ra1 {[%emt 0:00:27]} Bc4 {[%emt 0:00:03]} 88. Kg3 {[%emt 0:01:49]} Kc5 {[%emt 0:00:04]} 89. Kf4 {[%emt 0:00:16]} Kd4 {[%emt 0:00:21]} 90. Rd1+ {[%emt 0:01:04]} Bd3 91. g4 {[%emt 0:00:36]} Kc3 {[%emt 0:00:51]} 92. Ra1 Bc4 {[%emt 0:01:45]} 93. Ke5 {[%emt 0:01:07]} Kb2 {[%emt 0:00:28]} 94. Rxa2+ {[%emt 0:00:22]} Kxa2 {[%emt 0:00:01]} 95. Kd4 {[%emt 0:00:20]} b5 {[%emt 0:00:16]} 96. Kc3 {[%emt 0:00:51]} Ka3 {[%emt 0:00:06]} 97. g5 {[%emt 0:00:08]} Bg8 {[%emt 0:00:06]} 98. Kc2 {[%emt 0:00:30]} b4 {[%emt 0:00:06]} 99. Kb1 {[%emt 0:00:26]} Bh7+ {[%emt 0:00:18]} 100. g6 {[%emt 0:00:24]} Bxg6+ {[%emt 0:00:04]} 101. Ka1 {[%emt 0:00:04]} Bf7 {[%emt 0:00:11]} 0-1

[Event "KAZ Cup Women 2019"]
[Site "Almaty"]
[Date "2019.12.16"]
[Round "6.2"]
[White "Gvetadze, Sofio"]
[Black "Gevorgyan, Maria"]
[Result "1-0"]
[ECO "A08"]
[WhiteElo "2301"]
[BlackElo "2255"]
[Annotator "ChessBase"]
[PlyCount "128"]
[EventDate "2019.12.12"]
[EventType "tourn"]
[EventCountry "KAZ"]
[SourceTitle "playchess.com"]
[Source "ChessBase"]
[SourceQuality "1"]
[TimeControl "40/5400+30:1800+30"]

1. Nf3 Nf6 {[%emt 0:00:00]} 2. g3 {[%emt 0:00:00]} e6 {[%emt 0:00:20]} 3. Bg2 {[%emt 0:00:00]} d5 {[%emt 0:00:13]} 4. O-O {[%emt 0:00:04]} Be7 {[%emt 0:00:04]} 5. d3 {[%emt 0:00:09]} O-O {[%emt 0:00:07]} 6. Nbd2 {[%emt 0:00:05]} c5 {[%emt 0:00:10]} 7. e4 {[%emt 0:00:16]} Nc6 {[%emt 0:00:11]} 8. Re1 {[%emt 0:00:16]} b5 9. e5 {[%emt 0:00:14]} Nd7 {[%emt 0:00:34]} 10. Nf1 {[%emt 0:00:06]} b4 {[%emt 0:01:36]} 11. h4 a5 {[%emt 0:00:41]} 12. N1h2 {[%emt 0:00:36]} Re8 {[%emt 0:00:04]} 13. Bf4 {[%emt 0:01:50]} a4 {[%emt 0:04:45]} 14. a3 {[%emt 0:00:30]} bxa3 {[%emt 0:00:05]} 15. bxa3 {[%emt 0:00:05]} Qb6 {[%emt 0:01:29]} 16. h5 h6 {[%emt 0:00:05]} 17. Ng4 {[%emt 0:06:20]} Bf8 {[%emt 0:15:04]} 18. c4 Na5 19. Qxa4 {[%emt 0:17:14]} Qb3 {[%emt 0:01:07]} 20. Qxb3 {[%emt 0:00:41]} Nxb3 {[%emt 0:00:05]} 21. Ra2 {[%emt 0:00:30]} Ra4 {[%emt 0:04:50]} 22. Ne3 {[%emt 0:07:24]} Ba6 23. Rb1 {[%emt 0:42:53]} Na5 {[%emt 0:09:13]} 24. Nd2 {[%emt 0:01:01]} Nc6 {[%emt 0:03:52]} 25. cxd5 {[%emt 0:01:19]} Ncxe5 {[%emt 0:03:06]} 26. dxe6 Rxe6 {[%emt 0:09:43]} 27. Bh3 {[%emt 0:01:24]} Nxd3 {[%emt 0:03:41]} 28. Bxe6 fxe6 {[%emt 0:00:01]} 29. Bc7 {[%emt 0:02:19]} Be7 {[%emt 0:01:43]} 30. Rc2 {[%emt 0:03:56]} N3e5 {[%emt 0:18:36]} 31. Rd1 Rd4 32. f4 {[%emt 0:12:31]} Nc6 {[%emt 0:06:38]} 33. Nf3 {[%emt 0:00:15]} Rxd1+ {[%emt 0:00:36]} 34. Nxd1 {[%emt 0:00:01]} c4 {[%emt 0:03:29]} 35. Kh2 {[%emt 0:00:40]} Nf6 {[%emt 0:01:22]} 36. Ne3 {[%emt 0:00:25]} Nd5 {[%emt 0:00:46]} 37. Nxc4 {[%emt 0:03:55]} Nxc7 {[%emt 0:00:02]} 38. Nd6 {[%emt 0:00:06]} Bxd6 {[%emt 0:05:22]} 39. Rxc6 {[%emt 0:00:06]} Bb7 {[%emt 0:00:01]} 40. Rxd6 {[%emt 0:00:09]} Bxf3 {[%emt 0:00:05]} 41. a4 Bxh5 {[%emt 0:13:21]} 42. Rc6 {[%emt 0:01:21]} Ne8 {[%emt 0:05:23]} 43. Rxe6 {[%emt 0:04:45]} Kf7 {[%emt 0:00:27]} 44. Re3 {[%emt 0:01:56]} Bg4 {[%emt 0:00:43]} 45. Rc3 {[%emt 0:03:29]} Ke7 {[%emt 0:08:47]} 46. a5 {[%emt 0:00:46]} Kd7 {[%emt 0:00:04]} 47. a6 {[%emt 0:01:12]} Bf5 {[%emt 0:02:19]} 48. Rc4 {[%emt 0:01:18]} Nc7 {[%emt 0:01:13]} 49. a7 {[%emt 0:00:14]} Na8 {[%emt 0:00:01]} 50. Rb4 {[%emt 0:01:02]} h5 {[%emt 0:05:43]} 51. Rb7+ {[%emt 0:00:18]} Kd6 {[%emt 0:04:38]} 52. Rxg7 {[%emt 0:00:15]} Be4 {[%emt 0:00:09]} 53. Rg8 {[%emt 0:01:59]} Nb6 {[%emt 0:01:51]} 54. Rb8 {[%emt 0:01:13]} Na8 {[%emt 0:01:08]} 55. Kh3 {[%emt 0:00:43]} Bf3 {[%emt 0:00:05]} 56. Kh4 {[%emt 0:00:15]} Nc7 {[%emt 0:00:17]} 57. Kg5 {[%emt 0:00:33]} Ke6 {[%emt 0:00:33]} 58. Rh8 {[%emt 0:00:44]} Ke7 {[%emt 0:01:38]} 59. Rh7+ {[%emt 0:00:20]} Kd6 {[%emt 0:00:08]} 60. f5 {[%emt 0:01:30]} Nb5 {[%emt 0:00:39]} 61. f6 {[%emt 0:00:26]} Ke6 {[%emt 0:00:33]} 62. Re7+ {[%emt 0:00:34]} Kd6 {[%emt 0:00:10]} 63. Kg6 {[%emt 0:00:19]} Nc7 {[%emt 0:00:18]} 64. Rxc7 {[%emt 0:00:39]} Kd5 1-0

[Event "KAZ Cup Women 2019"]
[Site "Almaty"]
[Date "2019.12.16"]
[Round "6.3"]
[White "Tomilova, Elena"]
[Black "Ankudinova, Yelena"]
[Result "1-0"]
[ECO "A13"]
[WhiteElo "2341"]
[BlackElo "2093"]
[Annotator "ChessBase"]
[PlyCount "91"]
[EventDate "2019.12.12"]
[EventType "tourn"]
[EventCountry "KAZ"]
[SourceTitle "playchess.com"]
[Source "ChessBase"]
[SourceQuality "1"]
[TimeControl "40/5400+30:1800+30"]

1. c4 {[%emt 0:00:00]} e6 {[%emt 0:00:00]} 2. Nf3 {[%emt 0:00:00]} d5 {[%emt 0:00:12]} 3. b3 {[%emt 0:00:00]} Nf6 {[%emt 0:00:55]} 4. Bb2 {[%emt 0:00:12]} Be7 {[%emt 0:00:26]} 5. g3 {[%emt 0:00:08]} O-O {[%emt 0:00:10]} 6. Bg2 {[%emt 0:00:04]} Nbd7 {[%emt 0:04:01]} 7. O-O {[%emt 0:00:19]} c6 {[%emt 0:00:15]} 8. e3 {[%emt 0:02:58]} b5 {[%emt 0:07:23]} 9. cxb5 {[%emt 0:03:04]} cxb5 {[%emt 0:00:15]} 10. Nd4 {[%emt 0:00:17]} Qb6 {[%emt 0:00:50]} 11. Nc3 {[%emt 0:07:36]} a6 {[%emt 0:03:41]} 12. a4 {[%emt 0:04:07]} b4 {[%emt 0:04:29]} 13. a5 {[%emt 0:02:35]} Qd6 {[%emt 0:04:04]} 14. Nce2 {[%emt 0:03:24]} Nc5 {[%emt 0:05:35]} 15. d3 {[%emt 0:02:53]} Bd7 {[%emt 0:07:01]} 16. f4 {[%emt 0:11:46]} Qb8 {[%emt 0:15:04]} 17. h3 {[%emt 0:13:49]} Bb5 {[%emt 0:01:37]} 18. Nc1 {[%emt 0:03:01]} Ra7 {[%emt 0:02:44]} 19. Rf2 {[%emt 0:00:33]} Nfd7 {[%emt 0:03:30]} 20. Rd2 {[%emt 0:07:04]} Rc8 {[%emt 0:05:28]} 21. Nce2 {[%emt 0:01:08]} Bd8 {[%emt 0:05:11]} 22. e4 {[%emt 0:07:08]} Nf6 {[%emt 0:01:34]} 23. e5 {[%emt 0:03:00]} Nfd7 {[%emt 0:02:16]} 24. Kh1 {[%emt 0:03:50]} Nb7 {[%emt 0:02:37]} 25. f5 {[%emt 0:03:41]} exf5 {[%emt 0:15:26]} 26. Nxf5 {[%emt 0:02:29]} Nxe5 {[%emt 0:00:24]} 27. Nf4 {[%emt 0:01:08]} Bd7 {[%emt 0:01:53]} 28. Qh5 {[%emt 0:02:59]} Bxf5 {[%emt 0:00:39]} 29. Qxf5 {[%emt 0:00:05]} Ng6 {[%emt 0:01:15]} 30. Bxd5 {[%emt 0:02:22]} Nd6 {[%emt 0:00:17]} 31. Qg4 {[%emt 0:00:09]} Rc5 {[%emt 0:03:12]} 32. Nxg6 {[%emt 0:03:34]} hxg6 {[%emt 0:00:05]} 33. Qd4 {[%emt 0:00:38]} Nf5 {[%emt 0:00:17]} 34. Qxc5 {[%emt 0:00:27]} Nxg3+ {[%emt 0:02:18]} 35. Kg1 {[%emt 0:01:03]} Re7 {[%emt 0:00:26]} 36. Qf2 {[%emt 0:00:41]} Bc7 {[%emt 0:00:28]} 37. Re1 {[%emt 0:01:35]} Rxe1+ {[%emt 0:01:13]} 38. Qxe1 {[%emt 0:00:03]} Bf4 {[%emt 0:00:16]} 39. Qe7 {[%emt 0:01:39]} Nf5 {[%emt 0:00:19]} 40. Qxf7+ {[%emt 0:01:51]} Kh7 {[%emt 0:00:02]} 41. Rg2 {[%emt 0:31:24]} Bh2+ {[%emt 0:09:41]} 42. Kh1 {[%emt 0:00:00]} Bg3 {[%emt 0:01:35]} 43. Bxg7 {[%emt 0:00:00]} Nxg7 {[%emt 0:02:53]} 44. Qg8+ {[%emt 0:00:00]} Kh6 {[%emt 0:00:28]} 45. Qxb8 {[%emt 0:00:00]} Bxb8 {[%emt 0:00:08]} 46. Be4 {[%emt 0:00:00]} 1-0

[Event "KAZ Cup Women 2019"]
[Site "Almaty"]
[Date "2019.12.16"]
[Round "6.4"]
[White "Davletbayeva, Madina"]
[Black "Kim, Kristina"]
[Result "1-0"]
[ECO "B06"]
[WhiteElo "2238"]
[BlackElo "1975"]
[Annotator "ChessBase"]
[PlyCount "73"]
[EventDate "2019.12.12"]
[EventType "tourn"]
[EventCountry "KAZ"]
[SourceTitle "playchess.com"]
[Source "ChessBase"]
[SourceQuality "1"]
[TimeControl "40/5400+30:1800+30"]

1. e4 {[%emt 0:00:00]} g6 {[%emt 0:00:00]} 2. h4 {[%emt 0:00:22]} d6 {[%emt 0:07:07]} 3. d4 {[%emt 0:00:45]} Nf6 {[%emt 0:00:31]} 4. Nc3 {[%emt 0:00:37]} Nc6 {[%emt 0:01:33]} 5. f3 {[%emt 0:05:22]} e5 {[%emt 0:04:51]} 6. d5 {[%emt 0:04:14]} Nb8 {[%emt 0:12:27]} 7. Be3 {[%emt 0:08:33]} Be7 {[%emt 0:06:25]} 8. Qd2 {[%emt 0:22:57]} Nh5 {[%emt 0:02:32]} 9. O-O-O {[%emt 0:00:53]} Nd7 {[%emt 0:21:29]} 10. Nge2 {[%emt 0:04:53]} Nb6 {[%emt 0:01:09]} 11. b3 {[%emt 0:00:45]} f5 {[%emt 0:02:18]} 12. exf5 {[%emt 0:15:04]} gxf5 {[%emt 0:01:26]} 13. Kb1 {[%emt 0:04:34]} Rg8 {[%emt 0:11:59]} 14. g3 {[%emt 0:06:02]} Rg6 {[%emt 0:02:43]} 15. Rg1 {[%emt 0:03:16]} Bd7 {[%emt 0:00:28]} 16. Bh3 {[%emt 0:01:08]} Qc8 {[%emt 0:06:01]} 17. g4 {[%emt 0:02:35]} fxg4 {[%emt 0:02:53]} 18. fxg4 {[%emt 0:00:06]} Bxg4 {[%emt 0:00:23]} 19. Rxg4 {[%emt 0:07:46]} Rxg4 {[%emt 0:01:42]} 20. Nb5 {[%emt 0:01:25]} Nf6 {[%emt 0:02:25]} 21. Bxb6 {[%emt 0:04:55]} cxb6 {[%emt 0:01:43]} 22. Rf1 {[%emt 0:01:19]} Rd4 {[%emt 0:07:30]} 23. Qe3 {[%emt 0:01:43]} Re4 {[%emt 0:00:07]} 24. Qg3 {[%emt 0:01:26]} Rg4 {[%emt 0:01:39]} 25. Qe3 {[%emt 0:00:53]} Re4 {[%emt 0:00:33]} 26. Qg3 {[%emt 0:00:04]} Rg4 {[%emt 0:00:13]} 27. Bxg4 {[%emt 0:00:20]} Qxg4 {[%emt 0:00:40]} 28. Qxg4 {[%emt 0:00:18]} Nxg4 {[%emt 0:00:07]} 29. Nc7+ {[%emt 0:00:05]} Kd7 {[%emt 0:00:34]} 30. Nxa8 {[%emt 0:00:09]} Nf6 {[%emt 0:00:58]} 31. Ng3 {[%emt 0:01:28]} Nxd5 {[%emt 0:00:27]} 32. Rf7 {[%emt 0:00:30]} h6 33. Rh7 {[%emt 0:00:32]} Kc8 {[%emt 0:01:04]} 34. c4 {[%emt 0:00:23]} Bxh4 {[%emt 0:00:10]} 35. Nf5 {[%emt 0:00:48]} Nc3+ {[%emt 0:00:50]} 36. Kc2 {[%emt 0:00:11]} Be1 {[%emt 0:00:31]} 37. Nxd6+ {[%emt 0:00:22]} 1-0

[Event "KAZ Cup Women 2019"]
[Site "Almaty"]
[Date "2019.12.16"]
[Round "6.5"]
[White "Khomeriki, Nino"]
[Black "Balabayeva, Xeniya"]
[Result "1-0"]
[ECO "D02"]
[WhiteElo "2355"]
[BlackElo "2119"]
[Annotator "ChessBase"]
[PlyCount "85"]
[EventDate "2019.12.12"]
[EventType "tourn"]
[EventCountry "KAZ"]
[SourceTitle "playchess.com"]
[Source "ChessBase"]
[SourceQuality "1"]
[TimeControl "40/5400+30:1800+30"]

1. d4 {[%emt 0:00:00]} Nf6 {[%emt 0:00:00]} 2. Nf3 {[%emt 0:00:40]} d5 {[%emt 0:00:00]} 3. Bf4 {[%emt 0:03:34]} c5 {[%emt 0:00:43]} 4. c3 {[%emt 0:01:20]} Qb6 {[%emt 0:04:04]} 5. Qb3 {[%emt 0:03:10]} c4 {[%emt 0:03:15]} 6. Qc2 {[%emt 0:03:48]} g6 {[%emt 0:03:35]} 7. Nbd2 {[%emt 0:07:09]} Bf5 {[%emt 0:04:56]} 8. Qc1 {[%emt 0:00:06]} Nc6 {[%emt 0:05:01]} 9. h3 {[%emt 0:01:33]} h6 {[%emt 0:11:40]} 10. Ne5 {[%emt 0:03:42]} g5 {[%emt 0:03:47]} 11. Bh2 {[%emt 0:00:10]} Bg7 {[%emt 0:01:31]} 12. e3 {[%emt 0:01:08]} Ne4 {[%emt 0:04:57]} 13. Nxc6 {[%emt 0:03:16]} bxc6 {[%emt 0:04:16]} 14. Nxe4 {[%emt 0:01:51]} Bxe4 {[%emt 0:00:16]} 15. f3 {[%emt 0:00:14]} Bg6 {[%emt 0:01:15]} 16. Be2 {[%emt 0:00:21]} O-O {[%emt 0:05:03]} 17. O-O {[%emt 0:01:57]} c5 {[%emt 0:02:17]} 18. Kh1 {[%emt 0:02:09]} e6 {[%emt 0:04:09]} 19. Bg3 {[%emt 0:09:14]} a5 {[%emt 0:03:24]} 20. Qd2 {[%emt 0:08:38]} a4 {[%emt 0:03:08]} 21. a3 {[%emt 0:00:08]} Ra5 {[%emt 0:13:42]} 22. Bd1 {[%emt 0:01:30]} cxd4 {[%emt 0:03:25]} 23. exd4 {[%emt 0:00:15]} Rb5 {[%emt 0:00:57]} 24. Rf2 {[%emt 0:00:09]} Ra8 {[%emt 0:00:06]} 25. f4 {[%emt 0:04:54]} Bf6 {[%emt 0:07:15]} 26. Bg4 {[%emt 0:01:50]} Ra7 {[%emt 0:03:21]} 27. f5 {[%emt 0:03:18]} exf5 {[%emt 0:01:39]} 28. Bxf5 {[%emt 0:00:05]} Bxf5 {[%emt 0:00:14]} 29. Rxf5 {[%emt 0:00:03]} Re7 {[%emt 0:03:42]} 30. Rf2 {[%emt 0:05:02]} Rb7 {[%emt 0:01:09]} 31. Raf1 {[%emt 0:01:36]} Bg7 {[%emt 0:01:38]} 32. Qe1 {[%emt 0:07:25]} Rxb2 {[%emt 0:00:55]} 33. Qe8+ {[%emt 0:01:13]} Kh7 {[%emt 0:00:01]} 34. Rxf7 {[%emt 0:00:56]} Qg6 {[%emt 0:00:32]} 35. Rxb7 {[%emt 0:00:58]} Rxb7 {[%emt 0:00:35]} 36. Qxa4 {[%emt 0:00:31]} Qd3 {[%emt 0:00:23]} 37. Rf3 {[%emt 0:01:14]} Rb1+ {[%emt 0:00:21]} 38. Kh2 {[%emt 0:00:01]} Qd2 {[%emt 0:01:05]} 39. Qd7 {[%emt 0:04:32]} Qc1 {[%emt 0:00:32]} 40. Be5 {[%emt 0:01:50]} Qh1+ {[%emt 0:00:19]} 41. Kg3 {[%emt 0:30:04]} Qe1+ {[%emt 0:30:13]} 42. Rf2 {[%emt 0:00:16]} Qe3+ {[%emt 0:00:00]} 43. Kh2 {[%emt 0:00:00]} 1-0